bitfinex-derivatives/quotes_BTCF0:USTF0_20250716
["timestamp","ask_amount","ask_price","bid_price","bid_amount"]
[1752676183111,0.1697215,118510.0,118500.0,0.95542709]
[1752676183809,0.1697215,118510.0,118500.0,0.36042709]
[1752676184011,0.1697215,118510.0,118500.0,0.95538709]
[1752676184606,0.1697215,118510.0,118500.0,0.36042709]
[1752676184807,0.1697215,118510.0,118500.0,0.95538709]
[1752676186008,0.001,118510.0,118500.0,1.50215144]
[1752676186709,0.1697215,118510.0,118500.0,1.50215144]
[1752676187221,0.001,118510.0,118500.0,1.50215144]
[1752676187806,0.0843434,118540.0,118520.0,0.28551]
[1752676187807,0.2530556,118530.0,118520.0,0.28551]
[1752676188112,0.27144334,118530.0,118520.0,0.88043]
[1752676189313,0.27544334,118530.0,118520.0,0.88043]
[1752676189706,0.27544334,118530.0,118520.0,1.34681019]
[1752676191007,0.27544334,118530.0,118520.0,0.78039]
[1752676191209,0.27144334,118530.0,118520.0,0.78039]
[1752676191808,0.27144334,118530.0,118520.0,0.78035]
[1752676192608,0.27144334,118530.0,118520.0,1.34673019]
[1752676193315,0.27144334,118530.0,118520.0,0.88035]
[1752676194716,0.27144334,118530.0,118520.0,0.89265557]
[1752676195711,0.27144334,118530.0,118520.0,0.29781557]
[1752676196018,0.27144334,118530.0,118520.0,0.89257557]
[1752676196809,0.27144334,118530.0,118520.0,0.88027]
[1752676197919,0.27144334,118530.0,118520.0,0.28551]
[1752676198119,0.27144334,118530.0,118520.0,0.88027]
[1752676199925,0.27144334,118530.0,118520.0,0.7115628]
[1752676200220,0.73782353,118530.0,118520.0,0.0168028]
[1752676200525,0.73782353,118530.0,118520.0,0.6115228]
[1752676200719,0.73782353,118530.0,118520.0,0.6114828]
[1752676201219,0.27144334,118530.0,118520.0,0.6114828]
[1752676201419,0.73782353,118530.0,118520.0,0.78019]
[1752676201820,0.73782353,118530.0,118520.0,0.6114828]
[1752676202021,0.73782353,118530.0,118520.0,0.0168028]
[1752676202222,0.73782353,118530.0,118520.0,0.6114828]
[1752676203223,1.23782353,118530.0,118520.0,0.0168028]
[1752676203521,0.1687215,118510.0,118500.0,0.07966046]
[1752676203827,0.65348943,118510.0,118500.0,0.68639937]
[1752676204325,0.65348943,118510.0,118500.0,0.01229891]
[1752676204525,0.1687357,118500.0,118490.0,1.18382007]
[1752676204722,0.65350363,118500.0,118490.0,1.77846007]
[1752676204918,0.65350363,118500.0,118490.0,0.61174007]
[1752676205329,0.65350363,118500.0,118490.0,0.01710007]
[1752676205623,0.82228763,118500.0,118490.0,0.61174007]
[1752676205824,1.32228763,118500.0,118490.0,0.61174007]
[1752676206126,1.32228763,118500.0,118490.0,0.61274007]
[1752676206526,0.85590744,118500.0,118490.0,0.61274007]
[1752676206723,1.32228763,118500.0,118490.0,0.61274007]
[1752676207725,1.32228763,118500.0,118490.0,0.01810007]
[1752676208028,1.32228763,118500.0,118470.0,0.09641721]
[1752676208029,0.1687642,118480.0,118470.0,0.09641721]
[1752676208328,0.65353213,118480.0,118470.0,0.09621721]
[1752676208626,0.65353213,118480.0,118470.0,0.69089721]
[1752676208827,0.65353213,118480.0,118470.0,0.09621721]
[1752676209028,0.73428847,118480.0,118470.0,0.69089721]
[1752676209225,0.73428847,118480.0,118470.0,0.02921853]
[1752676209540,0.75271699,118480.0,118470.0,4e-08]
[1752676209740,0.75271699,118480.0,118470.0,0.59464004]
[1752676209938,1.25271699,118480.0,118470.0,0.59464004]
[1752676210535,1.3190657,118480.0,118470.0,4e-08]
[1752676210737,0.1687784,118470.0,118460.0,0.59464]
[1752676210939,0.73430267,118470.0,118460.0,0.59464]
[1752676211134,0.73430267,118470.0,118450.0,1.50287474]
[1752676211135,0.1687927,118460.0,118450.0,1.50287474]
[1752676211336,0.1687927,118460.0,118450.0,2.19755474]
[1752676212432,0.1687927,118460.0,118450.0,2.19855474]
[1752676212831,0.1687927,118460.0,118450.0,2.74569127]
[1752676213133,0.1687927,118460.0,118450.0,2.15635374]
[1752676214237,0.1687927,118460.0,118450.0,1.35066654]
[1752676214438,0.1687927,118460.0,118450.0,1.95590652]
[1752676214837,0.71592923,118460.0,118450.0,1.19477028]
[1752676215036,0.73428058,118460.0,118450.0,1.78949028]
[1752676215744,0.18714405,118460.0,118450.0,1.78949028]
[1752676216137,0.18714405,118460.0,118450.0,1.95829718]
[1752676217245,0.1687927,118460.0,118450.0,2.05829718]
[1752676218139,0.1687927,118460.0,118450.0,1.78949028]
[1752676218545,0.1687927,118460.0,118450.0,1.95829718]
[1752676219346,0.1687927,118460.0,118450.0,2.02661136]
[1752676219642,0.2953827,118470.0,118460.0,0.1687927]
[1752676219842,0.2531604,118480.0,118470.0,0.1687784]
[1752676220048,0.2531604,118480.0,118470.0,1.41063493]
[1752676220243,0.2531604,118480.0,118470.0,0.8634984]
[1752676220844,0.2531604,118480.0,118470.0,0.2687784]
[1752676221046,0.2541604,118480.0,118470.0,0.8635384]
[1752676222342,0.2541604,118480.0,118470.0,0.1]
[1752676222547,0.2541604,118480.0,118470.0,0.8634984]
[1752676222842,0.2541604,118480.0,118470.0,0.2687784]
[1752676223044,0.2963433,118480.0,118470.0,0.8634984]
[1752676223447,0.2963433,118480.0,118470.0,0.69472]
[1752676223644,0.2963433,118480.0,118470.0,0.8634984]
[1752676225345,0.2541492,118480.0,118470.0,0.8634984]
[1752676225748,0.2541492,118480.0,118470.0,1.41063493]
[1752676226138,0.001,118480.0,118470.0,1.41063493]
[1752676226344,0.1697642,118480.0,118470.0,1.41063493]
[1752676226539,0.001,118480.0,118470.0,1.41063493]
[1752676226748,0.1697642,118480.0,118470.0,1.41063493]
[1752676227053,0.253139,118490.0,118480.0,0.1687642]
[1752676227251,0.27149023,118490.0,118480.0,0.81590073]
[1752676227552,0.253139,118490.0,118480.0,0.28598003]
[1752676227752,0.2714951,118490.0,118480.0,0.28598003]
[1752676228549,0.2714951,118490.0,118480.0,0.11721583]
[1752676228748,0.2714951,118490.0,118480.0,0.01721583]
[1752676228953,0.2714951,118490.0,118480.0,0.61253583]
[1752676229553,0.81863163,118490.0,118480.0,0.61305583]
[1752676229850,0.81863163,118490.0,118480.0,0.61293583]
[1752676230749,0.81863163,118490.0,118480.0,0.01721583]
[1752676230950,0.82063163,118490.0,118480.0,0.01721583]
[1752676231150,0.82063163,118490.0,118480.0,0.61277583]
[1752676231552,1.32063163,118490.0,118480.0,0.01721583]
[1752676231752,1.32063163,118490.0,118480.0,0.61277583]
[1752676232654,0.7734951,118490.0,118480.0,0.61277583]
[1752676233054,0.5203561,118490.0,118480.0,0.61277583]
[1752676233255,0.0203561,118490.0,118480.0,1.42867656]
[1752676233447,0.189106,118490.0,118480.0,1.42867656]
[1752676233643,0.0203561,118490.0,118480.0,0.88154003]
[1752676233851,0.189106,118490.0,118480.0,0.90966003]
[1752676234052,0.189106,118490.0,118480.0,0.80966003]
[1752676234549,0.187106,118490.0,118480.0,0.90966003]
[1752676234751,0.1697499,118490.0,118480.0,0.97896643]
[1752676234955,0.001,118490.0,118480.0,0.97896643]
[1752676235149,0.1687499,118490.0,118480.0,0.97896643]
[1752676235454,0.1687499,118490.0,118480.0,1.52610296]
[1752676235649,0.126558,118500.0,118490.0,0.16875]
[1752676235650,0.2109306,118500.0,118490.0,0.16875]
[1752676235851,0.1687457,118500.0,118490.0,0.32292467]
[1752676236150,0.1687357,118500.0,118490.0,0.23854667]
[1752676236357,0.1687357,118500.0,118490.0,0.40728647]
[1752676236555,0.1687357,118500.0,118490.0,0.36510027]
[1752676236751,0.71587223,118500.0,118490.0,0.15417467]
[1752676237157,0.1687357,118500.0,118490.0,0.32292467]
[1752676238457,0.2530764,118520.0,118510.0,0.1687215]
[1752676238654,0.2530764,118520.0,118510.0,0.81887282]
[1752676239153,0.1687189,118520.0,118510.0,0.81887282]
[1752676239559,0.1687189,118520.0,118510.0,0.84156863]
[1752676240355,0.2952337,118530.0,118520.0,0.1687072]
[1752676240558,0.168693,118530.0,118520.0,0.23479342]
[1752676240857,0.168693,118530.0,118520.0,0.27696872]
[1752676241060,0.168693,118530.0,118520.0,0.34402071]
[1752676241450,0.18715318,118540.0,118530.0,0.168693]
[1752676241757,0.18715318,118540.0,118530.0,0.82931628]
[1752676242351,0.18715318,118540.0,118530.0,0.80543185]
[1752676243349,0.18715318,118540.0,118530.0,0.82942685]
[1752676243956,0.168693,118540.0,118530.0,0.82942685]
[1752676244150,0.2952219,118550.0,118540.0,0.18578212]
[1752676244354,0.2952219,118550.0,118540.0,0.20977712]
[1752676245062,0.2952219,118550.0,118540.0,0.23247293]
[1752676245254,0.2952219,118550.0,118540.0,0.06379413]
[1752676245456,0.2952219,118550.0,118540.0,0.23247293]
[1752676245770,0.2982219,118550.0,118540.0,0.23247293]
[1752676246861,0.2972219,118550.0,118540.0,0.85967293]
[1752676247359,0.2972219,118550.0,118540.0,0.69099413]
[1752676247559,0.2972219,118550.0,118540.0,0.66829832]
[1752676247758,0.2972219,118550.0,118540.0,0.04109832]
[1752676247957,0.2972219,118550.0,118540.0,0.66789832]
[1752676248459,0.84435843,118550.0,118540.0,0.66789832]
[1752676248861,0.2972219,118550.0,118540.0,0.83645712]
[1752676250062,0.84435843,118550.0,118540.0,0.69023413]
[1752676250361,0.84435843,118550.0,118540.0,0.66753832]
[1752676250753,0.2972219,118550.0,118540.0,0.66753832]
[1752676250955,0.84435843,118550.0,118540.0,0.83621702]
[1752676251161,0.2972219,118550.0,118540.0,0.66753832]
[1752676251357,0.84435843,118550.0,118540.0,0.66753832]
[1752676251556,4e-05,118550.0,118540.0,0.83621702]
[1752676251757,0.1686492,118570.0,118560.0,0.2107985]
[1752676251958,0.1686492,118570.0,118560.0,0.45406182]
[1752676252161,0.1686492,118570.0,118560.0,0.47862701]
[1752676252661,0.1686492,118570.0,118560.0,0.33646621]
[1752676253055,0.0843164,118580.0,118570.0,0.168636]
[1752676253260,0.2107892,118580.0,118570.0,0.29317883]
[1752676253572,0.2107892,118580.0,118570.0,0.19317883]
[1752676254262,0.2107892,118580.0,118570.0,0.02454283]
[1752676254263,0.7107892,118580.0,118570.0,0.02454283]
[1752676254464,0.7107892,118580.0,118570.0,0.19317883]
[1752676254665,0.7107892,118580.0,118570.0,0.02454283]
[1752676255060,4e-05,118650.0,118570.0,0.58335337]
[1752676255254,4e-05,118650.0,118630.0,0.1685479]
[1752676255458,0.1685365,118640.0,118620.0,0.19171387]
[1752676255770,0.1685365,118640.0,118620.0,0.268557]
[1752676255771,0.0842714,118640.0,118620.0,0.268557]
[1752676256065,0.1685507,118630.0,118620.0,0.268557]
[1752676256371,0.1685507,118630.0,118620.0,0.17866452]
[1752676256570,0.1685507,118630.0,118620.0,0.01010752]
[1752676256869,0.2107162,118620.0,118600.0,0.23507107]
[1752676257060,0.1685748,118620.0,118610.0,0.1685791]
[1752676257263,0.0842791,118630.0,118610.0,0.1685791]
[1752676257563,0.1685649,118620.0,118610.0,0.2107237]
[1752676257861,0.0842791,118630.0,118620.0,0.1685568]
[1752676257862,0.1685507,118630.0,118620.0,0.1685568]
[1752676258064,0.0852719,118640.0,118620.0,0.2106969]
[1752676258362,0.211681,118640.0,118620.0,0.2106972]
[1752676258561,0.2538175,118640.0,118620.0,0.2106972]
[1752676258874,0.5,118640.0,118630.0,0.2685507]
[1752676259060,0.6685365,118640.0,118630.0,0.1685507]
[1752676259669,0.501,118640.0,118630.0,0.1685507]
[1752676260169,0.6695365,118640.0,118630.0,0.1685507]
[1752676260466,0.1695365,118640.0,118630.0,0.1685507]
[1752676260669,0.1685507,118630.0,118620.0,0.71569383]
[1752676260865,0.1685507,118630.0,118620.0,0.1685573]
[1752676261259,0.1685507,118630.0,118620.0,0.1685608]
[1752676261666,0.0421401,118630.0,118610.0,0.01025179]
[1752676261867,0.0843058,118650.0,118630.0,0.2106882]
[1752676262068,4e-05,118650.0,118640.0,0.81567303]
[1752676262367,4e-05,118650.0,118640.0,0.2685365]
[1752676262564,4e-05,118650.0,118640.0,0.81567303]
[1752676262764,0.0421146,118700.0,118680.0,0.1684706]
[1752676262964,0.1684655,118690.0,118680.0,0.2684706]
[1752676263166,0.1684655,118690.0,118680.0,0.78821265]
[1752676263370,0.2105831,118690.0,118670.0,0.29143536]
[1752676263569,0.71561623,118680.0,118670.0,0.06860563]
[1752676263773,0.1685081,118660.0,118650.0,0.1687163]
[1752676263971,0.2106285,118670.0,118650.0,0.2106452]
[1752676264171,0.1685081,118660.0,118650.0,0.2106452]
[1752676264365,0.1685081,118660.0,118650.0,0.75778173]
[1752676264569,0.2106245,118670.0,118660.0,0.1685081]
[1752676265378,0.1685081,118660.0,118650.0,0.79990883]
[1752676265672,0.252755,118670.0,118660.0,0.1685081]
[1752676265873,0.1685081,118660.0,118650.0,0.81564953]
[1752676266070,0.1685081,118660.0,118650.0,0.168513]
[1752676266464,0.1685081,118660.0,118650.0,0.81564953]
[1752676266871,0.1685081,118660.0,118650.0,0.2527704]
[1752676267068,0.1685081,118660.0,118650.0,0.3106403]
[1752676267273,0.1685081,118660.0,118650.0,0.2685123]
[1752676268275,0.1685081,118660.0,118650.0,0.1685123]
[1752676268480,0.1685081,118660.0,118650.0,0.1695123]
[1752676269076,0.1685081,118660.0,118650.0,0.2695123]
[1752676269277,0.1685081,118660.0,118650.0,0.81664883]
[1752676269472,0.1685081,118660.0,118650.0,0.2695123]
[1752676269780,0.1685081,118660.0,118650.0,0.81664883]
[1752676270176,0.1685081,118660.0,118650.0,0.2695123]
[1752676270367,0.1685081,118660.0,118650.0,0.81664883]
[1752676270871,0.1685081,118660.0,118650.0,0.2695123]
[1752676271076,0.2527559,118670.0,118660.0,0.1685083]
[1752676271279,0.2106158,118680.0,118670.0,0.2684886]
[1752676271579,0.2106158,118680.0,118670.0,0.81562513]
[1752676271780,0.1684941,118670.0,118660.0,0.79988493]
[1752676271980,0.1685083,118660.0,118650.0,0.80090833]
[1752676272273,0.71564483,118660.0,118650.0,0.001]
[1752676272676,0.1685367,118640.0,118630.0,0.0002]
[1752676272877,0.1685509,118630.0,118620.0,1.1218524]
[1752676273079,0.2949568,118640.0,118630.0,0.1685509]
[1752676273273,0.2528198,118640.0,118630.0,0.2685509]
[1752676277076,0.2528198,118640.0,118630.0,0.16860984]
[1752676277280,0.2528198,118640.0,118630.0,0.33716074]
[1752676279076,0.2106828,118640.0,118630.0,0.33716074]
[1752676279676,0.1685468,118640.0,118630.0,0.33716074]
[1752676279878,0.1685468,118640.0,118630.0,1.23328074]
[1752676280378,0.1685468,118640.0,118630.0,1.78041727]
[1752676281379,0.1685468,118640.0,118630.0,1.23328074]
[1752676281881,0.1685468,118640.0,118630.0,1.78041727]
[1752676282269,0.21080037,118650.0,118640.0,0.1685367]
[1752676282474,0.21080037,118650.0,118640.0,0.81567323]
[1752676282673,0.16866287,118650.0,118640.0,0.2685367]
[1752676282876,0.00014037,118650.0,118640.0,0.81567323]
[1752676283882,0.16866287,118650.0,118640.0,0.2685367]
[1752676284076,0.16866287,118650.0,118640.0,0.81567323]
[1752676284574,0.00014037,118650.0,118640.0,0.81567323]
[1752676284879,0.16866287,118650.0,118640.0,0.29104077]
[1752676285080,0.16866287,118650.0,118640.0,0.8381773]
[1752676285470,0.00014037,118650.0,118640.0,0.8381773]
[1752676287080,0.00014037,118650.0,118640.0,1.7224973]
[1752676287273,0.16866287,118650.0,118640.0,1.18312005]
[1752676287478,0.00014037,118650.0,118640.0,1.73025658]
[1752676287879,0.00014037,118650.0,118640.0,1.18312005]
[1752676288274,0.4211606,118700.0,118640.0,1.18312005]
[1752676288275,0.06050007,118720.0,118640.0,2.69596111]
[1752676288475,0.2106039,118680.0,118670.0,0.1]
[1752676288774,0.0421263,118670.0,118650.0,0.22136661]
[1752676288982,0.1685083,118660.0,118650.0,0.19110326]
[1752676289182,0.1685083,118660.0,118650.0,1.18018326]
[1752676289574,0.1685083,118660.0,118650.0,0.12258796]
[1752676289776,0.1685083,118660.0,118650.0,1.18015046]
[1752676290183,0.1685083,118660.0,118650.0,1.01362796]
[1752676290477,0.1685083,118660.0,118650.0,0.02458796]
[1752676290678,0.1685083,118660.0,118650.0,0.91370796]
[1752676290885,0.1685083,118660.0,118650.0,0.89112]
[1752676291072,0.71564483,118660.0,118650.0,0.002]
[1752676291272,0.1685083,118660.0,118650.0,0.8912]
[1752676291479,0.6685083,118660.0,118650.0,0.8912]
[1752676291777,0.1685225,118650.0,118640.0,0.22138591]
[1752676291977,0.1685225,118650.0,118640.0,1.20990591]
[1752676292182,0.1685225,118650.0,118640.0,1.20962591]
[1752676292982,0.1685225,118650.0,118640.0,1.10962591]
[1752676293178,0.0421255,118670.0,118650.0,0.0421284]
[1752676293376,0.1685083,118660.0,118650.0,0.33323266]
[1752676293578,0.1685083,118660.0,118650.0,0.34090805]
[1752676293979,0.1685083,118660.0,118650.0,0.36352651]
[1752676294183,0.1685083,118660.0,118650.0,0.29877965]
[1752676294478,0.1685083,118660.0,118650.0,0.84591618]
[1752676294879,0.7547538,118670.0,118660.0,0.1685083]
[1752676295074,0.0441255,118670.0,118650.0,0.11451975]
[1752676295274,0.1685083,118660.0,118650.0,0.28303575]
[1752676295479,0.1685083,118660.0,118650.0,0.38303575]
[1752676296076,0.1685083,118660.0,118650.0,0.34090705]
[1752676296478,0.1685083,118660.0,118650.0,0.03026335]
[1752676296678,0.1685225,118650.0,118640.0,0.03026335]
[1752676296986,0.1685225,118650.0,118640.0,0.1685367]
[1752676297285,0.1685225,118650.0,118640.0,0.9146]
[1752676297673,0.1685367,118640.0,118630.0,0.03026335]
[1752676297873,0.1685509,118630.0,118620.0,1.19530335]
[1752676298078,0.1685509,118630.0,118620.0,1.16504]
[1752676298275,0.1685509,118630.0,118620.0,2.08104]
[1752676298674,0.71568743,118630.0,118620.0,1.16504]
[1752676298876,0.1685793,118610.0,118600.0,0.95162335]
[1752676299083,0.1685793,118610.0,118600.0,0.92136]
[1752676299284,0.1685793,118610.0,118600.0,0.93110163]
[1752676299688,0.71571583,118610.0,118600.0,0.93110163]
[1752676299889,0.71571583,118610.0,118600.0,1.09969513]
[1752676300090,1.21571583,118610.0,118600.0,1.09969513]
[1752676300394,0.6685793,118610.0,118600.0,1.64883166]
[1752676300691,0.6685793,118610.0,118600.0,1.10169513]
[1752676301195,0.6685793,118610.0,118600.0,1.13195848]
[1752676301790,0.6685793,118610.0,118600.0,0.96336498]
[1752676301997,0.6685793,118610.0,118600.0,0.95362335]
[1752676302295,1.21571583,118610.0,118600.0,0.95362335]
[1752676303594,0.6685793,118610.0,118600.0,0.95362335]
[1752676303794,1.21571583,118610.0,118600.0,0.95362335]
[1752676303991,0.6685793,118610.0,118600.0,0.95162335]
[1752676304193,1.71433983,118610.0,118600.0,0.03026335]
[1752676304402,0.1686078,118590.0,118580.0,0.06052508]
[1752676304691,0.1686078,118590.0,118580.0,0.01513]
[1752676304898,0.71574433,118590.0,118580.0,0.01513]
[1752676305787,0.168622,118580.0,118570.0,0.04539508]
[1752676306393,0.71575853,118580.0,118570.0,0.04539508]
[1752676306889,0.1686362,118570.0,118560.0,0.00940583]
[1752676307194,0.1686646,118550.0,118540.0,0.06072678]
[1752676307388,0.1686646,118550.0,118540.0,0.06052678]
[1752676307694,0.1686931,118530.0,118520.0,2.21438875]
[1752676307898,0.78492672,118530.0,118520.0,0.06052678]
[1752676308399,0.23779019,118530.0,118520.0,0.06052678]
[1752676308698,0.1687073,118520.0,118510.0,0.2530742]
[1752676308892,0.1687073,118520.0,118510.0,0.3530742]
[1752676309092,0.1687073,118520.0,118510.0,0.3108939]
[1752676309298,0.1687073,118520.0,118510.0,0.1]
[1752676309496,0.1687073,118520.0,118510.0,0.2687216]
[1752676310092,0.1687073,118520.0,118510.0,0.81585813]
[1752676310287,0.32214939,118530.0,118520.0,0.1687073]
[1752676310591,0.1687073,118520.0,118510.0,0.3570661]
[1752676310793,0.1687073,118520.0,118510.0,1.18832939]
[1752676310998,0.36432679,118530.0,118520.0,0.1687073]
[1752676311191,0.32215059,118530.0,118520.0,0.71584383]
[1752676311392,0.32215059,118530.0,118520.0,0.1]
[1752676311593,0.36432679,118530.0,118520.0,0.1687073]
[1752676311898,0.1687073,118520.0,118510.0,1.17267659]
[1752676312199,0.1687073,118520.0,118510.0,1.73545752]
[1752676312701,0.1687073,118520.0,118510.0,1.18832099]
[1752676312891,0.1687073,118520.0,118510.0,1.73145752]
[1752676313688,0.1687073,118520.0,118510.0,1.18832099]
[1752676313888,0.1687073,118520.0,118510.0,1.73545752]
[1752676314393,0.1687073,118520.0,118510.0,1.73546592]
[1752676314794,0.71584383,118520.0,118510.0,0.004]
[1752676315194,0.1687073,118520.0,118510.0,0.004]
[1752676315398,0.71584383,118520.0,118510.0,0.004]
[1752676315599,0.1687073,118520.0,118510.0,0.004]
[1752676315897,0.71584383,118520.0,118510.0,0.004]
[1752676316493,0.1687216,118510.0,118500.0,0.226058]
[1752676316796,0.1687216,118510.0,118500.0,0.85805453]
[1752676317198,0.1687216,118510.0,118500.0,0.210918]
[1752676317394,0.1687216,118510.0,118500.0,0.310918]
[1752676317595,0.1687216,118510.0,118500.0,0.22088961]
[1752676317796,0.1687216,118510.0,118500.0,0.76902614]
[1752676318688,0.7530754,118520.0,118510.0,0.1687216]
[1752676318891,0.7530754,118520.0,118510.0,1.62657813]
[1752676319697,0.2530754,118520.0,118510.0,1.0794416]
[1752676320203,0.2530754,118520.0,118510.0,0.91072]
[1752676320501,0.2530754,118520.0,118510.0,1.0794416]
[1752676321402,0.2530754,118520.0,118510.0,0.1687216]
[1752676321604,0.80021193,118520.0,118510.0,1.0717216]
[1752676321806,0.2530754,118520.0,118510.0,1.0717216]
[1752676322704,0.1687191,118520.0,118510.0,1.61885813]
[1752676322909,0.2530342,118540.0,118530.0,0.1686931]
[1752676323109,0.2530342,118540.0,118530.0,1.61798963]
[1752676323698,0.2530342,118540.0,118530.0,0.90216]
[1752676324206,0.2530342,118540.0,118530.0,1.0708533]
[1752676324399,0.2108281,118560.0,118550.0,0.1686646]
[1752676324604,0.2108281,118560.0,118550.0,1.0693446]
[1752676325207,0.1686633,118560.0,118550.0,1.0693446]
[1752676325806,0.2529698,118570.0,118560.0,0.1686504]
[1752676326306,0.1686474,118570.0,118560.0,0.71578693]
[1752676326714,0.1686474,118570.0,118560.0,0.81578693]
[1752676327009,0.1706474,118570.0,118560.0,0.1686504]
[1752676327209,0.1706474,118570.0,118560.0,0.71578693]
[1752676327705,0.002,118570.0,118560.0,0.81578693]
[1752676328107,0.170636,118570.0,118560.0,0.881828]
[1752676328412,0.170636,118570.0,118560.0,0.89160362]
[1752676328607,0.170636,118570.0,118560.0,1.78644362]
[1752676328816,0.170636,118570.0,118560.0,1.78564362]
[1752676329312,0.170636,118570.0,118560.0,1.78532362]
[1752676329514,0.170636,118570.0,118560.0,1.13818709]
[1752676329714,0.170636,118570.0,118560.0,1.78532362]
[1752676330316,0.170636,118570.0,118560.0,1.23818709]
[1752676330518,0.170636,118570.0,118560.0,1.78532362]
[1752676332415,0.170636,118570.0,118560.0,1.23818709]
[1752676332612,0.170636,118570.0,118560.0,1.78532362]
[1752676332811,0.002,118570.0,118560.0,1.23818709]
[1752676333116,0.1706361,118570.0,118560.0,1.78532362]
[1752676334117,0.1706361,118570.0,118560.0,1.23818709]
[1752676334414,0.1706361,118570.0,118560.0,1.78532362]
[1752676335618,0.1706361,118570.0,118560.0,1.68532362]
[1752676336111,0.1706361,118570.0,118560.0,1.13818709]
[1752676336316,0.1706361,118570.0,118560.0,1.78532362]
[1752676336518,0.1706361,118570.0,118560.0,1.23818709]
[1752676336817,0.1706361,118570.0,118560.0,1.78532362]
[1752676337415,0.1706361,118570.0,118560.0,1.23818709]
[1752676337817,0.1706361,118570.0,118560.0,1.78532362]
[1752676338414,0.1706361,118570.0,118560.0,1.23818709]
[1752676338610,0.2107849,118580.0,118570.0,0.1686361]
[1752676338811,0.1686503,118560.0,118550.0,0.01534]
[1752676339011,0.71578683,118560.0,118550.0,0.89094]
[1752676339212,0.1686503,118560.0,118550.0,0.89094]
[1752676339411,1.13448283,118560.0,118550.0,0.8754401]
[1752676339612,1.13448283,118560.0,118550.0,1e-07]
[1752676339819,1.68161936,118560.0,118550.0,1e-07]
[1752676340016,1.70014611,118560.0,118540.0,0.87508]
[1752676340219,1.70014611,118560.0,118540.0,0.8147935]
[1752676340220,1.26293746,118550.0,118540.0,0.8147935]
[1752676340513,0.71580093,118550.0,118540.0,0.8147935]
[1752676340921,0.1686931,118530.0,118520.0,0.2110817]
[1752676341120,0.1686931,118530.0,118520.0,1.2258183]
[1752676341619,0.1686931,118530.0,118520.0,1.13545428]
[1752676341821,0.1686931,118530.0,118520.0,1.23545428]
[1752676342522,0.1686931,118530.0,118520.0,1.23285428]
[1752676343116,0.1686931,118530.0,118520.0,0.36269428]
[1752676343422,0.1686931,118530.0,118520.0,1.13161428]
[1752676343622,0.1686931,118530.0,118520.0,0.26269428]
[1752676343822,0.1686931,118530.0,118520.0,1.13037428]
[1752676345123,0.1686931,118530.0,118520.0,1.77751081]
[1752676345327,0.2108629,118540.0,118530.0,0.1686933]
[1752676345528,0.2108629,118540.0,118530.0,0.81582983]
[1752676345917,0.253013,118550.0,118540.0,0.1686792]
[1752676346126,0.253013,118550.0,118540.0,1.1328792]
[1752676348028,0.253013,118550.0,118540.0,1.1317992]
[1752676348527,0.1686762,118550.0,118540.0,1.1317992]
[1752676349527,0.1686762,118550.0,118540.0,1.67893573]
[1752676349719,0.1686762,118550.0,118540.0,2.84509573]
[1752676349921,0.2529906,118560.0,118550.0,0.1686651]
[1752676350527,0.2108247,118560.0,118550.0,0.1686651]
[1752676350925,0.2108102,118570.0,118560.0,0.1686509]
[1752676351133,0.2529475,118580.0,118570.0,0.1686367]
[1752676352228,0.2549475,118580.0,118570.0,0.1686367]
[1752676352932,0.2127893,118580.0,118570.0,0.1686367]
[1752676353932,0.2127893,118580.0,118570.0,0.17832985]
[1752676354333,0.2107893,118580.0,118570.0,0.17832985]
[1752676354634,0.2107893,118580.0,118570.0,1.02876985]
[1752676354830,0.22792285,118580.0,118570.0,1.02876985]
[1752676356134,0.22792285,118580.0,118570.0,0.17832985]
[1752676356436,0.22792285,118580.0,118570.0,1.02612985]
[1752676357228,0.01713355,118580.0,118570.0,1.02612985]
[1752676357430,0.18575605,118580.0,118570.0,1.02612985]
[1752676357630,0.18575605,118580.0,118570.0,1.57326638]
[1752676358341,0.18575605,118580.0,118570.0,1.02612985]
[1752676361637,0.18575605,118580.0,118570.0,0.17832985]
[1752676361836,0.1686225,118580.0,118570.0,1.01772985]
[1752676362139,0.18574318,118580.0,118570.0,1.01772985]
[1752676362543,0.75159254,118580.0,118570.0,0.00969315]
[1752676362841,0.73287873,118580.0,118570.0,0.1686368]
[1752676363034,0.73287873,118580.0,118570.0,1.01544784]
[1752676363434,0.1857422,118580.0,118570.0,1.01544784]
[1752676365138,0.2717587,118600.0,118590.0,0.1686083]
[1752676365330,0.2529088,118600.0,118590.0,1.0045683]
[1752676365526,0.1686083,118590.0,118580.0,0.3107686]
[1752676365729,0.1686225,118580.0,118570.0,0.07838908]
[1752676365933,0.71575903,118580.0,118570.0,1.0028367]
[1752676366129,0.71575903,118580.0,118570.0,0.8342]
[1752676366631,0.1686225,118580.0,118570.0,1.0028367]
[1752676367427,0.1686225,118580.0,118570.0,1.1028367]
[1752676367737,0.06124447,118590.0,118580.0,0.1686224]
[1752676367932,0.2107654,118590.0,118580.0,0.1686224]
[1752676368439,0.2107654,118590.0,118580.0,0.71575893]
[1752676368838,0.2950597,118600.0,118590.0,0.1686082]
[1752676369139,0.2950597,118600.0,118590.0,0.9993682]
[1752676370135,0.2950597,118600.0,118590.0,1.0666726]
[1752676370440,0.2980597,118600.0,118590.0,1.0666726]
[1752676371037,0.84219623,118600.0,118590.0,0.82752]
[1752676371240,0.0421542,118590.0,118570.0,0.2953007]
[1752676371535,0.2529387,118580.0,118570.0,0.1686367]
[1752676371735,0.1686367,118570.0,118560.0,0.1781952]
[1752676371941,0.1686367,118570.0,118560.0,1.0045152]
[1752676372635,0.2529956,118560.0,118540.0,1.25325071]
[1752676372836,0.71580163,118550.0,118540.0,0.06750644]
[1752676373138,0.84230843,118550.0,118540.0,0.825]
[1752676373342,0.84230843,118550.0,118540.0,0.9936793]
[1752676374039,0.2951719,118550.0,118540.0,0.9936793]
[1752676374440,0.2530027,118550.0,118540.0,0.9936793]
[1752676374843,0.2530027,118550.0,118540.0,0.9976793]
[1752676376841,0.2530027,118550.0,118540.0,1.00714664]
[1752676377846,0.2530027,118550.0,118540.0,1.07602264]
[1752676378145,0.2530027,118550.0,118540.0,1.12098535]
[1752676379447,0.2529937,118560.0,118550.0,0.1686651]
[1752676379649,0.81720956,118560.0,118550.0,0.1686651]
[1752676379944,0.27007303,118560.0,118550.0,0.1686651]
[1752676380343,0.81720956,118560.0,118550.0,0.1686651]
[1752676380745,0.81720956,118560.0,118540.0,0.25102264]
[1752676380746,0.1686651,118550.0,118540.0,0.25102264]
[1752676380941,0.73288557,118550.0,118540.0,0.90214334]
[1752676381640,0.18574904,118550.0,118540.0,1.07082264]
[1752676382149,0.18574904,118550.0,118540.0,1.07482264]
[1752676382345,0.73288557,118550.0,118540.0,0.08234334]
[1752676382558,0.73288557,118550.0,118540.0,0.004]
[1752676383052,0.18574904,118550.0,118540.0,0.004]
[1752676383254,0.73288557,118550.0,118540.0,0.004]
[1752676383451,1.23288557,118550.0,118540.0,0.1726793]
[1752676383751,0.68574904,118550.0,118540.0,0.004]